bitfinex-derivatives/quotes_ETHF0:USTF0_20250923
["timestamp","ask_amount","ask_price","bid_price","bid_amount"]
[1758598145055,0.3669,4179.2,4179.1,0.253]
[1758598145250,0.8461,4179.2,4179.1,0.253]
[1758598145854,0.8461,4179.2,4179.1,0.4898]
[1758598146050,0.8461,4179.2,4179.1,0.253]
[1758598148257,4.0539,4179.2,4179.1,0.253]
[1758598148556,4.26342746,4179.2,4179.1,0.253]
[1758598149455,4.81195128,4179.2,4179.1,0.253]
[1758598150154,0.6098,4178.8,4178.7,0.2368]
[1758598150359,0.81932746,4178.8,4178.7,0.4888]
[1758598150957,1.05562746,4178.8,4178.7,0.4888]
[1758598151658,0.20952746,4178.8,4178.7,1.0635]
[1758598152253,0.20952746,4178.8,4178.7,41.8635]
[1758598152652,3.8176,4179.8,4179.7,0.8115]
[1758598152851,4.36636828,4179.8,4179.7,1.0635]
[1758598153259,3.8176,4179.8,4179.7,1.0635]
[1758598153464,4.36646918,4179.8,4179.7,1.0635]
[1758598153653,3.2078,4179.8,4179.7,1.0635]
[1758598153848,0.43021,4180.1,4179.8,0.3476]
[1758598154046,0.67311,4180.1,4180.0,0.8115]
[1758598154359,1.58882267,4180.1,4180.0,0.8115]
[1758598154854,0.43023,4179.9,4179.8,0.2368]
[1758598155054,0.90943,4179.9,4179.8,0.2368]
[1758598155258,1.458289,4179.9,4179.7,0.252]
[1758598155446,1.028059,4179.8,4179.7,0.252]
[1758598155651,1.394959,4179.8,4179.7,0.252]
[1758598157153,5.394959,4179.8,4179.7,0.252]
[1758598159362,0.43034,4178.9,4178.7,40.8]
[1758598159559,1.26654,4178.9,4178.8,0.252]
[1758598159863,1.82189496,4178.9,4178.8,0.252]
[1758598161869,5.02969496,4178.9,4178.8,0.252]
[1758598163772,1.2666,4178.2,4178.1,40.8]
[1758598163967,1.2666,4178.2,4178.1,41.052]
[1758598164263,3.2078,4178.4,4178.3,0.8645]
[1758598164767,0.20614074,4178.4,4178.3,4.8645]
[1758598167266,0.20614074,4178.4,4178.3,5.1165]
[1758598167462,0.20614074,4178.4,4178.3,8.3243]
[1758598167666,0.80014074,4178.4,4178.3,0.8645]
[1758598167968,3.8018,4179.4,4179.3,0.4961]
[1758598168170,3.2078,4179.4,4179.3,1.1165]
[1758598168570,0.77804,4179.8,4179.7,0.8645]
[1758598168770,1.82258112,4179.8,4179.7,0.7481]
[1758598170065,1.82258112,4179.8,4179.7,0.252]
[1758598170771,0.43029,4179.3,4179.0,0.3684]
[1758598170974,0.6157,4179.5,4179.4,0.8744]
[1758598171171,1.54043639,4179.5,4179.4,0.7493]
[1758598171475,0.80403639,4179.5,4179.4,1.1264]
[1758598171772,0.2477,4179.5,4179.4,1.1264]
[1758598172173,1.04594,4179.8,4179.7,0.8744]
[1758598172474,1.60223466,4179.8,4179.7,41.9264]
[1758598173671,1.60223466,4179.8,4179.7,41.5493]
[1758598174968,1.60223466,4179.8,4179.7,41.3053]
[1758598175676,1.83203466,4179.8,4179.7,0.5053]
[1758598175879,0.6157,4179.4,4179.3,0.8744]
[1758598176172,0.368,4179.8,4179.4,0.3771]
[1758598176378,0.6157,4179.8,4179.7,0.8744]
[1758598176575,0.55627802,4179.8,4179.7,1.1264]
[1758598176878,3.8235,4179.9,4179.8,0.8744]
[1758598178172,0.6157,4179.9,4179.8,0.8744]
[1758598178480,0.9967,4181.0,4180.9,0.4973]
[1758598178681,4.76039559,4181.0,4180.9,0.7493]
[1758598179276,1.55259559,4181.0,4180.9,0.7493]
[1758598180177,4.96336315,4181.0,4180.9,0.5053]
[1758598180380,4.96336315,4181.0,4180.9,0.252]
[1758598184890,4.96015484,4181.0,4180.9,0.252]
[1758598185384,8.96015484,4181.0,4180.9,0.252]
[1758598185886,4.96015484,4181.0,4180.9,0.252]
[1758598187477,0.2477,4180.3,4180.2,40.8]
[1758598187684,1.04525925,4180.3,4180.2,41.4291]
[1758598188077,1.47544925,4180.3,4180.2,41.4291]
[1758598188279,1.04525925,4180.3,4180.2,41.4291]
[1758598188989,0.2477,4180.1,4180.0,0.2533]
[1758598189190,1.04525925,4180.1,4180.0,0.252]
[1758598190084,0.43023,4179.9,4179.5,40.8]
[1758598190283,0.6157,4179.6,4179.5,41.1771]
[1758598190583,0.81545925,4179.6,4179.5,41.4291]
[1758598193384,0.81545925,4179.6,4179.5,40.8]
[1758598193680,0.81545925,4179.6,4179.5,41.4291]
[1758598194080,1.04525925,4179.6,4179.5,0.252]
[1758598194884,1.04525925,4179.6,4179.5,1.1264]
[1758598195089,1.04525925,4179.6,4179.5,0.7493]
[1758598195289,1.04525925,4179.6,4179.5,0.5053]
[1758598195590,1.04525925,4179.6,4179.5,0.252]
[1758598196290,1.60106747,4179.6,4179.5,0.252]
[1758598196492,0.4775,4179.2,4179.1,0.6304]
[1758598196693,1.04525925,4179.2,4179.1,0.8824]
[1758598196894,1.04525925,4179.2,4179.1,0.5053]
[1758598197089,1.04525925,4179.2,4179.1,0.2533]
[1758598197295,1.04525925,4179.2,4179.1,0.7493]
[1758598197595,1.04525925,4179.2,4179.1,1.1264]
[1758598197985,1.04525925,4179.2,4179.1,0.7493]
[1758598198193,0.81545925,4179.2,4179.1,1.1264]
[1758598198395,1.04525925,4179.2,4179.1,1.1264]
[1758598198697,1.04525925,4179.2,4179.1,0.7493]
[1758598198895,1.60212253,4179.2,4179.1,0.252]
[1758598199094,1.60212253,4179.2,4179.1,0.06879703]
[1758598199301,5.60212253,4179.2,4179.1,0.06879703]
[1758598199502,0.8455,4178.8,4178.7,0.5053]
[1758598199698,4.25305925,4178.8,4178.7,0.5053]
[1758598199897,4.68340925,4178.8,4178.7,0.252]
[1758598200494,4.68340925,4178.8,4178.7,0.4857]
[1758598200697,5.407252,4178.8,4178.7,0.7351]
[1758598200899,4.25305925,4178.8,4178.7,2.25669275]
[1758598201096,4.25305925,4178.8,4178.7,1.15419275]
[1758598201301,1.29337,4178.6,4178.5,0.252]
[1758598201499,1.493497,4178.6,4178.5,0.252]
[1758598201797,1.493497,4178.6,4178.5,41.052]
[1758598201991,1.063127,4178.6,4178.5,0.252]
[1758598202302,0.200127,4178.6,4178.5,1.2435]
[1758598202497,3.2078,4179.3,4179.2,0.2337]
[1758598202703,0.19997191,4179.3,4179.2,1.1025]
[1758598203596,0.374,4180.3,4179.8,0.4831]
[1758598203794,1.04520719,4180.2,4180.1,0.4831]
[1758598203995,1.06112,4180.0,4179.9,0.4857]
[1758598204195,1.43512,4180.0,4179.9,0.4857]
[1758598204596,1.43512,4180.0,4179.9,41.2857]
[1758598204998,1.0049,4180.0,4179.9,41.2857]
[1758598205293,3.2078,4180.2,4180.1,0.8505]
[1758598205694,3.4554,4180.2,4180.1,0.8505]
[1758598206001,0.374,4180.6,4180.1,0.4831]
[1758598206193,3.8294,4180.8,4180.7,0.8505]
[1758598206394,3.8294,4180.8,4180.7,1.1025]
[1758598206594,3.4554,4180.8,4180.7,1.1025]
[1758598206793,3.2078,4181.4,4180.8,0.3674]
[1758598207096,3.5818,4182.1,4181.9,0.3674]
[1758598207292,3.8294,4182.1,4182.0,1.1025]
[1758598207492,3.2078,4182.1,4182.0,1.1025]
[1758598207700,3.2078,4182.6,4182.0,0.622]
[1758598207905,0.863,4182.2,4182.1,0.4857]
[1758598208204,0.1419,4182.5,4181.3,0.3674]
[1758598208398,3.6968,4181.6,4181.5,0.2337]
[1758598208594,3.2078,4181.6,4181.4,0.252]
[1758598208789,3.2078,4181.6,4181.4,0.6194]
[1758598209087,0.1419,4182.0,4181.4,0.252]
[1758598209292,0.374,4181.9,4181.5,0.1389]
[1758598209500,0.374,4181.9,4181.6,0.3674]
[1758598209687,0.374,4181.9,4181.5,0.1389]
[1758598210098,0.374,4181.9,4181.6,0.3674]
[1758598210298,3.6378,4182.2,4181.5,0.1389]
[1758598210299,0.374,4181.8,4181.5,0.3674]
[1758598210498,3.5818,4181.7,4181.6,0.252]
[1758598210908,3.5818,4181.7,4181.6,41.052]
[1758598211795,3.5818,4181.7,4181.6,40.8]
[1758598211997,3.5818,4181.7,4181.6,41.052]
[1758598212199,0.43012,4181.0,4180.5,3.5752]
[1758598212501,3.5818,4181.7,4181.0,0.1389]
[1758598212692,3.5818,4181.7,4181.2,0.3674]
[1758598212899,3.2078,4182.3,4181.8,0.3674]
[1758598213099,3.2078,4182.3,4181.9,0.252]
[1758598213409,3.2078,4182.3,4182.1,0.3674]
[1758598213799,3.2078,4182.3,4182.0,0.141]
[1758598214109,0.374,4182.2,4182.1,0.3674]
[1758598214404,3.63779,4182.3,4181.9,0.6194]
[1758598214605,0.374,4182.2,4181.9,0.6194]
[1758598214794,3.63779,4182.3,4181.9,0.6194]
[1758598215195,0.374,4182.2,4181.9,0.6194]
[1758598215401,3.63779,4182.3,4181.9,0.6194]
[1758598215607,0.1872627,4182.2,4181.9,0.6194]
[1758598215795,0.374,4182.5,4182.0,0.141]
[1758598215999,0.18723782,4182.4,4182.1,0.3674]
[1758598216194,0.374,4182.5,4182.1,0.3674]
[1758598216401,0.18715631,4182.4,4182.0,0.141]
[1758598216602,0.3386,4182.5,4182.0,0.141]
[1758598216802,0.18716033,4182.4,4182.1,0.3494]
[1758598216998,0.03873322,4182.7,4182.1,0.5885]
[1758598217205,0.18715978,4182.6,4182.1,0.2391]
[1758598217404,0.03873322,4182.7,4182.3,0.42998]
[1758598217611,0.03873322,4182.7,4182.6,0.3494]
[1758598218308,0.03873322,4182.7,4182.6,41.1494]
[1758598221011,0.03873322,4182.7,4182.6,45.1494]
[1758598221312,3.6936,4185.0,4183.5,1.07465]
[1758598221610,3.5464,4185.0,4184.4,0.3494]
[1758598221806,3.5464,4185.0,4184.5,0.3897]
[1758598222007,3.5464,4185.0,4184.3,3.2078]
[1758598222008,0.3386,4184.8,4184.3,3.2078]
[1758598222209,3.5464,4184.4,4184.3,0.252]
[1758598222802,3.2078,4184.4,4184.3,41.4014]
[1758598223608,3.5464,4184.4,4184.3,41.4014]
[1758598224099,3.5464,4184.4,4184.3,40.8]
[1758598224305,0.3386,4184.4,4184.3,41.052]
[1758598224504,0.3386,4184.9,4184.3,41.4014]
[1758598224702,0.76833,4184.9,4184.3,41.052]
[1758598224910,0.3386,4184.5,4184.4,0.3494]
[1758598225510,3.78471,4185.0,4184.4,0.3494]
[1758598225827,0.42972,4184.9,4184.3,41.052]
[1758598226117,0.76832,4184.9,4184.4,0.3494]
[1758598226726,0.42972,4184.9,4184.4,0.3494]
[1758598227021,3.2078,4184.5,4184.4,0.3494]
[1758598227913,3.2078,4184.5,4184.4,0.8187]
[1758598228533,3.5464,4184.5,4184.4,0.8187]
[1758598228736,3.7762,4184.5,4184.4,0.8187]
[1758598229035,3.7762,4184.5,4184.4,0.4693]
[1758598229427,0.5684,4184.5,4184.4,0.8187]
[1758598230028,0.5684,4184.5,4184.4,1.0707]
[1758598230225,0.3386,4184.4,4184.3,40.8]
[1758598230435,0.3386,4184.4,4184.3,41.052]
[1758598230634,0.76837,4184.4,4184.3,40.8]
[1758598230939,0.5933,4183.6,4183.5,0.2416]
[1758598231135,0.5933,4183.6,4183.5,0.4936]
[1758598231435,0.5933,4183.6,4183.5,1.0591]
[1758598231738,3.2078,4183.9,4183.8,0.8071]
[1758598231941,3.2078,4183.9,4183.8,1.0591]
[1758598232235,4.0448,4183.9,4183.8,0.2416]
[1758598232423,0.2453,4183.6,4183.5,40.8]
[1758598232625,0.5933,4183.6,4183.5,40.8]
[1758598232930,0.5933,4183.6,4183.5,41.052]
[1758598233127,1.02315,4183.6,4183.5,40.8]
[1758598233323,0.837,4183.0,4182.9,0.2416]
[1758598233530,0.9704,4183.0,4182.9,0.4936]
[1758598233734,0.5933,4183.0,4182.9,41.8591]
[1758598234039,0.348,4183.7,4183.0,0.1378]
[1758598234242,3.2078,4184.1,4184.0,0.3337]
[1758598234430,3.9878269,4184.1,4184.0,1.0591]
[1758598234629,4.2315269,4184.1,4184.0,0.4936]
[1758598234827,4.2315269,4184.1,4184.0,41.2936]
[1758598235037,3.9878269,4184.1,4184.0,41.6273]
[1758598235235,3.3945269,4184.1,4184.0,41.6273]
[1758598235436,3.2078,4184.1,4184.0,41.7651]
[1758598235840,3.5558,4184.1,4184.0,41.3753]
[1758598236044,3.5558,4184.1,4184.0,41.6273]
[1758598236843,3.2078,4184.1,4184.0,41.6273]
[1758598237043,3.2078,4184.1,4184.0,41.7651]
[1758598237738,3.5558,4184.1,4184.0,41.6273]
[1758598237940,3.2078,4184.1,4184.0,41.7651]
[1758598239543,0.42974,4184.7,4184.6,0.4734]
[1758598239842,0.18707886,4184.7,4184.6,1.0591]
[1758598240544,0.18707886,4184.7,4184.6,41.8591]
[1758598241238,1.08816388,4184.7,4184.6,41.8591]
[1758598241442,1.08816388,4184.7,4184.6,41.2734]
[1758598241646,1.08816388,4184.7,4184.6,41.2936]
[1758598242842,1.08816388,4184.7,4184.6,41.0416]
[1758598243037,1.08816388,4184.7,4184.6,41.2936]
[1758598243442,1.08816388,4184.7,4184.6,41.052]
[1758598245740,0.74016388,4184.7,4184.6,41.3857]
[1758598246450,1.08816388,4184.7,4184.6,41.1337]
[1758598246842,1.08816388,4184.7,4184.6,41.3857]
[1758598247143,1.57716388,4184.7,4184.6,0.252]
[1758598247844,0.2453,4183.8,4183.7,0.5753]
[1758598248045,1.02407886,4183.8,4183.7,1.0591]
[1758598248247,1.57716388,4183.8,4183.7,1.0591]
[1758598248447,1.57716388,4183.8,4183.7,41.8591]
[1758598250556,0.98546388,4183.8,4183.7,41.8591]
[1758598250745,1.33346388,4183.8,4183.7,41.8591]
[1758598250939,0.98546388,4183.8,4183.7,41.6071]
[1758598251145,0.74016388,4183.8,4183.7,41.8591]
[1758598251639,3.2078,4184.2,4183.7,41.052]
[1758598251843,0.74415514,4184.1,4184.0,0.4298]
[1758598252048,0.1334,4184.0,4183.8,0.42983]
[1758598252248,3.2078,4184.2,4184.0,0.4298]
[1758598252448,3.2078,4184.2,4184.1,0.252]
[1758598252649,3.2078,4184.8,4184.1,0.252]
[1758598252854,3.2078,4184.8,4184.7,40.8]
[1758598253058,3.2078,4184.8,4184.7,41.052]
[1758598253251,3.5558,4184.8,4184.7,41.052]
[1758598255152,0.37827514,4185.8,4185.3,0.42967]
[1758598255354,0.1334,4186.5,4185.4,0.252]
[1758598255654,0.1334,4187.5,4187.3,0.42947]
[1758598255849,0.1334,4187.5,4185.9,15.25160156]
[1758598255850,0.4814,4187.5,4187.4,43.47418156]
[1758598256047,0.4814,4187.5,4187.4,84.27418156]
[1758598256248,0.4814,4187.5,4187.4,0.252]
[1758598257256,0.4814,4187.5,4187.4,41.052]
[1758598258351,0.4814,4187.5,4187.4,45.052]
[1758598258553,0.022,4187.9,4187.4,45.052]
[1758598258751,0.022,4187.9,4187.8,7.71898156]
[1758598258951,0.1334,4188.5,4188.1,0.42938]
[1758598259145,0.1334,4188.5,4188.2,0.252]
[1758598259654,0.1334,4188.5,4188.4,40.8]
[1758598260153,4.56275,4188.5,4188.3,0.252]
[1758598260462,0.1334,4187.5,4187.1,3.2078]
[1758598260659,0.4009,4187.4,4187.2,0.253]
[1758598261045,3.6087,4187.4,4187.3,40.8]
[1758598261866,7.6087,4187.4,4187.3,40.8]
[1758598262054,0.5761,4187.0,4186.9,0.252]
[1758598262556,0.5761,4187.0,4186.9,41.052]
[1758598262758,4.5761,4187.0,4185.9,3.2078]
[1758598262958,0.5761,4186.0,4185.9,3.2078]
[1758598263159,0.5761,4186.0,4185.9,3.4598]
[1758598263356,0.5761,4186.0,4185.9,44.2598]
[1758598263859,0.5761,4186.0,4185.9,41.052]
[1758598264750,0.1752,4186.5,4185.9,48.2598]
[1758598264951,0.1752,4186.5,4185.9,44.2598]
[1758598265261,0.5761,4186.0,4185.9,44.43742]
[1758598265453,0.1752,4186.0,4185.9,44.68942]
[1758598265654,0.5761,4186.5,4185.9,44.68942]
[1758598265853,0.4009,4186.4,4186.0,0.4296]
[1758598266049,0.4009,4186.4,4186.3,0.42957]
[1758598266253,0.5761,4187.0,4186.9,0.42952]
[1758598266462,0.5761,4187.0,4186.9,3.89032]
[1758598266757,0.5761,4187.0,4186.9,44.69032]
[1758598266968,0.4009,4187.4,4187.3,0.42947]
[1758598267258,0.1334,4187.5,4187.3,0.68247]
[1758598267559,0.4009,4187.8,4187.4,3.2078]
[1758598267855,0.1752,4188.0,4187.5,0.68245]
[1758598268059,0.4009,4187.9,4187.6,0.42944]
[1758598268256,0.4009,4187.9,4187.5,0.253]
[1758598268257,0.4009,4187.9,4187.7,0.253]
[1758598268455,0.1752,4188.0,4187.7,0.253]
[1758598268858,0.1752,4188.0,4187.7,0.68243]
[1758598269058,0.5761,4187.5,4187.4,3.2078]
[1758598269258,0.1752,4187.5,4187.4,3.4598]
[1758598269767,0.5761,4187.5,4187.4,3.4598]
[1758598270861,0.4009,4187.9,4187.4,48.2598]
[1758598271058,0.4009,4187.9,4187.8,0.42942]
[1758598271259,0.4009,4187.9,4187.8,0.68142]
[1758598271660,0.4009,4187.9,4187.8,41.48142]
[1758598272766,0.1752,4188.5,4188.4,0.42936]
[1758598272969,0.4009,4189.3,4188.8,0.42932]
[1758598273266,0.4009,4189.3,4188.4,42.1448]
[1758598273267,0.4009,4189.3,4189.2,0.42928]
[1758598273465,0.4009,4189.3,4189.2,41.48128]
[1758598273966,0.4009,4189.3,4189.2,41.052]
[1758598274155,0.4009,4189.3,4189.2,40.8]
[1758598274359,0.4009,4189.3,4189.2,41.052]
[1758598275459,4.4009,4189.3,4189.2,41.052]
[1758598275656,7.6087,4189.3,4189.2,41.052]
[1758598275859,7.6087,4189.3,4189.2,0.252]
[1758598276258,7.79063492,4189.3,4189.0,0.253]
[1758598276458,7.79063492,4189.3,4188.5,40.8]
[1758598276459,0.1655,4189.0,4188.5,40.8]
[1758598276668,0.3966,4188.9,4188.6,0.253]
[1758598276865,0.3966,4188.7,4188.6,0.253]
[1758598277774,0.1655,4187.0,4186.8,3.2078]
[1758598278066,0.3966,4186.9,4186.8,3.2078]
[1758598278257,0.3966,4186.9,4186.8,3.4608]
[1758598279065,0.3966,4186.9,4186.8,0.253]
[1758598280870,0.3966,4186.9,4186.8,41.053]
[1758598281170,4.57935077,4186.9,4186.8,0.253]
[1758598282069,0.1655,4186.0,4185.7,3.2078]
[1758598282368,0.3966,4185.4,4185.2,3.2078]
[1758598282569,0.3966,4185.4,4185.3,41.052]
[1758598283073,0.57959554,4185.4,4185.3,41.052]
[1758598283271,0.57966648,4185.4,4185.3,41.052]
[1758598284069,0.3966,4185.4,4185.3,41.052]
[1758598284968,0.1655,4185.5,4185.4,0.42967]
[1758598285168,0.1655,4186.0,4185.3,41.48167]
[1758598285368,0.3966,4185.4,4185.3,40.8]
[1758598285563,0.3966,4185.4,4185.3,41.052]
[1758598286268,0.57971202,4185.4,4185.3,41.052]
[1758598286669,0.57971202,4185.4,4185.3,0.252]
[1758598286972,0.1655,4185.0,4184.7,3.2078]
[1758598287174,0.3966,4184.9,4184.8,41.052]
[1758598287566,0.1655,4185.5,4184.9,0.42971]
[1758598287567,0.3966,4185.3,4184.9,0.42971]
[1758598287767,0.3966,4184.9,4184.8,40.8]
[1758598287970,0.3966,4184.9,4184.8,41.052]
[1758598288166,0.1655,4185.0,4184.8,41.052]
[1758598288367,0.1655,4185.0,4184.8,45.48172]
[1758598288774,0.3966,4184.9,4184.8,41.48173]
[1758598288975,0.3966,4184.9,4184.8,40.8]
[1758598289273,0.3966,4184.9,4184.8,41.053]
[1758598290077,0.3966,4184.9,4184.8,40.8]
[1758598290266,0.3966,4184.9,4184.8,41.053]
[1758598290671,0.4353,4184.4,4184.2,3.2078]
[1758598290871,0.4353,4184.4,4184.3,0.253]
[1758598291669,0.4353,4184.4,4184.3,41.053]
[1758598291871,0.1678,4184.5,4184.3,41.053]
[1758598292075,0.1678,4184.5,4184.3,41.48278]
[1758598292975,0.1655,4185.0,4184.6,0.42975]
[1758598293171,0.4353,4184.9,4184.7,0.253]
[1758598293374,0.86503,4184.9,4184.7,0.253]
[1758598294080,4.07283,4184.9,4184.7,0.253]
[1758598294278,8.07283,4184.9,4184.7,0.253]
[1758598294575,4.07282,4184.9,4184.7,0.253]
[1758598295375,8.07282,4184.9,4184.7,0.253]
[1758598295578,4.4353,4184.8,4184.7,0.253]
[1758598296182,0.4353,4184.8,4184.7,0.253]
[1758598297382,4.4353,4184.8,4184.7,0.253]
[1758598297875,4.4353,4184.8,4183.3,0.42988]
[1758598297876,0.1678,4183.5,4183.3,0.42988]
[1758598298083,0.1678,4183.5,4183.1,3.2078]
[1758598298380,0.1678,4183.5,4183.2,0.68189]
[1758598298580,0.1678,4183.5,4183.2,0.252]
[1758598298782,0.6031,4183.5,4183.4,40.8]
[1758598299282,0.6031,4183.5,4183.4,41.052]
[1758598299669,1.03296,4183.5,4183.4,40.8]
[1758598299981,0.6031,4183.0,4182.9,0.02390714]
[1758598300181,0.6031,4183.5,4182.9,0.27590714]
[1758598300382,0.6031,4183.5,4183.3,0.42988]
[1758598300581,0.6031,4183.5,4183.4,0.253]
[1758598300782,0.6031,4183.5,4183.4,41.053]
[1758598301179,0.4353,4183.7,4183.4,41.053]
[1758598301386,0.1678,4183.5,4183.4,41.053]
[1758598301579,0.4353,4183.7,4183.6,0.42985]
[1758598301785,0.4353,4183.7,4183.6,0.68185]
[1758598301985,0.4353,4183.7,4183.6,0.252]
[1758598302477,0.1678,4184.0,4183.6,44.68965]
[1758598302673,0.4353,4183.7,4183.6,44.2598]
[1758598303281,0.4353,4183.7,4183.6,41.052]
[1758598304276,0.4353,4183.7,4183.6,44.2598]
[1758598304479,0.6031,4184.0,4183.7,0.42984]
[1758598304688,0.1678,4184.0,4183.8,0.252]
[1758598304879,0.4353,4183.9,4183.8,0.252]
[1758598305682,0.4353,4183.7,4183.6,44.0078]
[1758598305986,0.4353,4183.7,4183.6,40.69939726]
[1758598306186,4.61835515,4183.7,4183.6,40.95139726]
[1758598306987,4.61835515,4183.7,4183.6,0.252]
[1758598307585,0.1678,4183.5,4183.2,40.8]
[1758598307785,4.25603515,4183.4,4183.3,0.252]
[1758598308384,1.03302,4183.0,4182.0,3.2078]
[1758598308577,1.03302,4183.0,4182.9,0.14490714]
[1758598308578,1.21607515,4183.0,4182.9,0.14490714]
[1758598308775,5.21607515,4183.0,4182.9,0.14490714]
[1758598309386,5.74792435,4183.0,4182.9,0.14490714]
[1758598309980,1.31800435,4183.0,4182.9,0.14490714]
[1758598310179,0.78615515,4183.0,4182.9,0.14490714]
[1758598310389,1.21607515,4183.0,4182.9,0.14490714]
[1758598310683,1.74803481,4183.0,4182.9,0.27590714]
[1758598310877,5.74803481,4183.0,4182.9,0.02390714]
[1758598311486,0.4353,4182.4,4182.1,40.8]
[1758598311686,0.61835515,4182.3,4182.2,0.252]
[1758598312985,0.18305515,4182.3,4182.2,0.252]
[1758598313287,0.1678,4182.5,4182.2,0.252]
[1758598313288,0.4353,4182.4,4182.3,0.42998]
[1758598313487,0.61871319,4182.4,4182.3,0.68198]
[1758598313682,0.61871319,4182.4,4182.3,0.252]
[1758598314487,0.4353,4182.9,4182.8,0.42994]
[1758598314689,0.4353,4182.9,4182.8,4.65624545]
[1758598314882,0.1678,4183.0,4182.8,8.65624545]
[1758598315078,0.6031,4183.0,4182.9,40.8]
[1758598315486,0.1678,4183.0,4182.9,40.8]
[1758598316085,0.4353,4183.9,4183.0,0.42992]
[1758598316290,0.18349293,4183.8,4183.6,0.42985]
[1758598316492,0.61879293,4183.7,4183.6,0.42985]
[1758598316693,0.61879293,4183.7,4183.6,0.68185]
[1758598318789,0.18349293,4183.7,4183.6,0.68185]
[1758598319092,0.61879293,4183.7,4183.6,0.68185]
[1758598319795,0.61879293,4183.7,4183.6,0.252]
[1758598320384,0.61879293,4183.7,4183.6,4.252]
[1758598320385,0.18349293,4183.7,4183.6,4.252]
[1758598320589,0.1678,4184.0,4183.9,0.42982]
[1758598320789,0.5691,4184.0,4183.9,0.68182]
[1758598320982,0.75273693,4184.0,4183.9,41.48182]
[1758598321989,0.5691,4184.5,4184.4,0.42977]
[1758598322194,0.75272227,4184.5,4184.4,0.68177]
[1758598322691,0.75272227,4184.5,4184.4,0.252]
[1758598323194,0.5685,4184.0,4183.9,40.8]
[1758598323387,0.75212227,4184.0,4183.9,41.052]
[1758598327989,0.35082227,4184.0,4183.9,41.052]
[1758598328184,0.18362227,4184.0,4183.9,41.052]
[1758598328384,0.1678,4184.5,4183.9,41.052]
[1758598328385,0.4013,4184.2,4184.0,0.42982]
[1758598328585,0.4013,4184.2,4184.1,0.252]
[1758598328800,0.4013,4185.1,4184.3,1.07446]
[1758598329099,0.4013,4185.4,4185.3,0.42968]
[1758598329287,0.4013,4185.4,4185.3,3.88948]
[1758598329492,0.4013,4185.4,4185.3,44.68948]
[1758598330600,0.4013,4185.4,4185.3,44.2598]
[1758598331098,4.4013,4185.4,4185.3,44.0078]
[1758598331298,4.4013,4185.4,4185.3,41.052]
[1758598331597,0.4013,4185.4,4185.3,41.052]
[1758598332488,0.4013,4185.4,4185.3,40.8]
[1758598332687,0.4013,4183.9,4183.8,3.2078]
[1758598332898,0.4013,4183.9,4183.8,3.4598]
[1758598333096,0.5685,4184.5,4183.8,7.4598]
[1758598333296,0.1672,4185.0,4184.8,0.42973]
[1758598333594,0.1672,4186.0,4185.6,0.42964]
[1758598333794,0.4013,4185.9,4185.7,0.68464]
[1758598333994,0.1672,4186.0,4185.7,3.89244]
[1758598334196,0.4013,4185.9,4185.7,3.2078]
[1758598334389,0.1672,4186.5,4185.8,0.255]
[1758598334589,0.1672,4186.5,4186.3,0.42957]
[1758598334790,0.1672,4186.5,4186.4,0.255]
[1758598334991,0.1672,4186.5,4186.4,40.8]
[1758598335188,0.1672,4186.5,4186.4,41.055]
[1758598336097,4.59676,4186.5,4186.4,40.8]
[1758598336286,11.77886545,4186.5,4186.4,41.055]
[1758598336489,12.35836545,4186.5,4186.4,0.255]
[1758598336792,3.9545,4186.5,4186.4,0.255]
[1758598337092,0.7467,4186.5,4186.4,0.255]
[1758598338298,0.1672,4187.0,4186.4,44.2628]
[1758598338689,0.2391,4185.5,4184.4,0.0369]
[1758598338893,0.5795,4185.3,4184.5,3.4628]
[1758598339098,0.2391,4185.0,4184.5,3.4628]
[1758598339498,3.4469,4185.5,4184.5,3.4628]
[1758598339499,3.4469,4185.5,4184.8,0.42973]
[1758598339798,0.2391,4186.0,4185.0,3.2078]
[1758598339799,0.5795,4185.9,4185.0,3.2078]
[1758598339997,0.2391,4186.0,4185.5,0.42966]
[1758598340198,0.5795,4185.9,4185.6,0.257]
[1758598340393,0.2391,4186.0,4185.0,3.2078]
[1758598340594,0.2391,4186.0,4185.2,0.42969]
[1758598340595,0.5795,4185.9,4185.2,0.42969]
[1758598340896,0.2391,4185.5,4185.1,41.057]
[1758598341087,0.5795,4185.4,4185.3,0.42968]
[1758598341294,0.5795,4185.4,4185.3,0.68668]
[1758598342394,0.5795,4185.4,4185.3,0.257]
[1758598343592,0.42968,4185.3,4185.1,40.8]
[1758598343800,1.00918,4185.3,4185.2,0.256]
[1758598344000,0.5795,4185.3,4185.2,0.256]
[1758598344198,0.76106611,4185.3,4185.2,0.256]
[1758598346397,0.5795,4185.2,4185.1,40.8]
[1758598346700,0.76106611,4185.2,4185.1,41.056]
[1758598347499,0.18156611,4185.2,4185.1,41.056]
[1758598347810,0.20037057,4185.2,4185.1,41.056]
[1758598347994,0.77987057,4185.2,4185.1,41.056]
[1758598348596,0.20037057,4185.2,4185.1,41.0929]
[1758598349006,0.20037057,4185.2,4185.1,41.056]
[1758598349303,0.77987057,4185.2,4185.1,41.056]
[1758598349503,1.20956057,4185.2,4185.1,40.8]
[1758598349713,1.20956057,4185.2,4185.1,41.056]